fUST/lending_fUST_20240103
["ID","MTS","AMOUNT","RATE_DAILY","PERIOD"]
[309992254,1704281438645,-575.0,0.00044503,90]
[309992255,1704281438655,-239.0,0.0004451,2]
[309992256,1704281438665,-13020.86944549,0.0004486,10]
[309992257,1704281438674,-575.0,0.00044877,90]
[309992258,1704281438684,-1050.54870749,0.00044898,5]
[309992259,1704281438693,-715.73849101,0.00044898,4]
[309992260,1704281438705,-446.098174,0.00044899,7]
[309992261,1704281438714,-446.098174,0.00044899,7]
[309992262,1704281438723,-27989.05174612,0.00044899,2]
[309992263,1704281438733,-7215.82199052,0.000449,120]
[309992264,1704281438742,-9739.25952508,0.000449,6]
[309992265,1704281438752,-1896.26161914,0.000449,2]
[309992266,1704281438761,-223.75288232,0.00044996,4]
[309992267,1704281438770,-393.4567195,0.00044996,2]
[309992268,1704281438779,-570.91253709,0.00044996,4]
[309992269,1704281438788,-591.25050596,0.00044996,4]
[309992270,1704281438797,-244.29673703,0.00044996,4]
[309992271,1704281438806,-155.23486332,0.00044996,30]
[309992273,1704281438815,-1622.32753538,0.00044996,14]
[309992275,1704281438824,-2642.00066393,0.00044996,4]
[309992277,1704281438833,-483.92315624,0.00044996,2]
[309992279,1704281438842,-309.19239456,0.00044996,4]
[309992281,1704281438851,-342.48956173,0.00044996,2]
[309992283,1704281438861,-340.15584359,0.00044996,4]
[309992285,1704281438870,-186.51888227,0.00044996,4]
[309992286,1704281438879,-393.94394324,0.00044996,2]
[309992288,1704281438889,-355.70711359,0.00044996,4]
[309992290,1704281438898,-214.92712387,0.00044996,4]
[309992292,1704281438907,-167.77,0.00044997,2]
[309992294,1704281438916,-167.77,0.00044997,2]
[309992296,1704281438925,-167.77,0.00044997,2]
[309992298,1704281438934,-167.77,0.00044997,2]
[309992300,1704281438943,-167.77,0.00044997,2]
[309992301,1704281438953,-167.77,0.00044997,2]
[309992303,1704281438961,-167.77,0.00044997,2]
[309992304,1704281438971,-167.77,0.00044997,2]
[309992306,1704281438980,-167.77,0.00044997,2]
[309992308,1704281438990,-167.77,0.00044997,2]
[309992310,1704281438999,-167.77,0.00044997,2]
[309992312,1704281439007,-167.77,0.00044997,2]
[309992314,1704281439017,-268.43850491,0.00044997,2]
[309992316,1704281439025,-798.88621726,0.00044998,3]
[309992318,1704281439035,-154.87609912,0.00044998,4]
[309992320,1704281439044,-155.53002517,0.00044998,4]
[309992322,1704281439053,-156.48322816,0.00044998,4]
[309992324,1704281439062,-7103.14109737,0.00044998,4]
[309992326,1704281439071,-25275.05761496,0.00044998,4]
[309992328,1704281439080,-641.13780821,0.00044998,4]
[309992330,1704281439089,-579.33013191,0.00044998,4]
[309992332,1704281439098,-155.22839769,0.00044998,4]
[309992333,1704281439107,-1603.27927877,0.00044998,4]
[309992334,1704281439116,-391.16397357,0.00044998,4]
[309992335,1704281439125,-195.08384734,0.00044998,2]
[309992336,1704281439135,-343.04091318,0.00044998,4]
[309992337,1704281439144,-1004.65980506,0.00044998,4]
[309992338,1704281439153,-201.97806734,0.00044998,4]
[309992339,1704281439163,-3135.91335812,0.00044998,4]
[309992340,1704281439172,-16795.12753275,0.00044998,120]
[309992341,1704281439181,-178.196675,0.00044998,7]
[309992342,1704281439191,-218.083493,0.00044998,7]
[309992343,1704281439202,-151.0,0.00044998,3]
[309992344,1704281439211,-542.847059,0.00044998,7]
[309992346,1704281439219,-542.847059,0.00044998,7]
[309992347,1704281439228,-446.098174,0.00044998,7]
[309992348,1704281439237,-446.098174,0.00044998,7]
[309992349,1704281439314,-887.57,0.00044999,7]
[309992350,1704281439324,-887.57,0.00044999,7]
[309992351,1704281439333,-887.57,0.00044999,7]
[309992352,1704281439343,-887.57,0.00044999,7]
[309992353,1704281439352,-887.57,0.00044999,7]
[309992354,1704281439361,-887.57,0.00044999,7]
[309992355,1704281439370,-887.57,0.00044999,7]
[309992356,1704281439379,-887.63,0.00044999,7]
[309992357,1704281439389,-479.28,0.00044999,7]
[309992358,1704281439399,-8396.44,0.00044999,7]
[309992359,1704281439408,-483.80095162,0.00044999,4]
[309992361,1704281439418,-167.04174259,0.00044999,4]
[309992363,1704281439427,-500.0,0.00044999,4]
[309992365,1704281439436,-515.41603491,0.00044999,4]
[309992367,1704281439445,-282.15224891,0.00044999,4]
[309992369,1704281439456,-153.50279121,0.00044999,4]
[309992371,1704281439465,-220.89258639,0.00044999,7]
[309992373,1704281439474,-392.10167472,0.00044999,7]
[309992375,1704281439483,-291.46046746,0.00044999,7]
[309992377,1704281439492,-451.99651,0.00044999,4]
[309992379,1704281439501,-306576.60397147,0.00045,120]
[309992382,1704281439513,-51322.38174148,0.00045,30]
[309992384,1704281439522,-151.0,0.00045,2]
[309992386,1704281439532,-151.0,0.00045,2]
[309992388,1704281439540,-151.0,0.00045,3]
[309992389,1704281439550,-1500.0,0.00045,3]
[309992391,1704281439560,-156.49076172,0.00045,2]
[309992393,1704281439569,-542.847059,0.00045,7]
[309992395,1704281439579,-542.847059,0.00045,7]
[309992397,1704281439588,-446.098174,0.00045,7]
[309992398,1704281439598,-446.098174,0.00045,7]
[309992399,1704281439607,-4355.86090068,0.00045,15]
[309992400,1704281439616,-1029.52745226,0.00045072,2]
[309992401,1704281439629,-10043.59544575,0.00045072,2]
[309992402,1704281439641,-3658.57290364,0.00045072,2]
[309992403,1704281439651,-500.0,0.00045205,10]
[309992404,1704281439660,-500.0,0.00045205,27]
[309992405,1704281439669,-500.0,0.00045479,27]
[309992406,1704281439679,-151.0,0.00045643,30]
[309992407,1704281439688,-151.0,0.00045753,2]
[309992408,1704281439699,-260.69336788,0.00045753,2]
[309992409,1704281439713,-151.0,0.00045753,3]
[309992410,1704281439723,-542.847059,0.00045753,7]
[309992411,1704281439734,-542.847059,0.00045753,7]
[309992412,1704281439743,-446.098174,0.00045753,7]
[309992413,1704281439752,-446.098174,0.00045753,7]
[309992415,1704281439762,-2000.0,0.00045753,21]
[309992416,1704281439770,-2000.0,0.00045753,21]
[309992419,1704281439780,-2000.0,0.00045753,21]
[309992420,1704281439789,-2000.0,0.00045753,21]
[309992421,1704281439798,-2000.0,0.00045753,21]
[309992423,1704281439807,-2000.0,0.00045753,21]
[309992425,1704281439816,-2000.0,0.00045753,21]
[309992428,1704281439825,-2000.0,0.00045753,21]
[309992430,1704281439834,-2000.0,0.00045753,21]
[309992432,1704281439843,-2000.0,0.00045753,21]
[309992434,1704281439852,-2114.97834646,0.00045753,21]
[309992436,1704281439861,-500.0,0.00045753,27]
[309992439,1704281439870,-231.4352,0.00045794,2]
[309992441,1704281439879,-491.74971169,0.00045824,4]
[309992443,1704281439890,-9739.17654324,0.00045824,120]
[309992445,1704281439900,-158.0193698,0.00045824,4]
[309992447,1704281439909,-23228.47830933,0.00045825,2]
[309992502,1704281441165,-154.81422293,0.00034514,5]
[309992503,1704281441175,-241.00015196,0.00037177,2]
[309992505,1704281441186,-933.872942,0.00041183,2]
[309992507,1704281441196,-933.872942,0.00041183,2]
[309992509,1704281441208,-933.872942,0.00041183,2]
[309992511,1704281441217,-487.89768089,0.00041183,2]
[309992573,1704281445158,-271.55697274,0.00041,20]
[309992577,1704281445182,-329.47296623,0.00041,20]
[309992579,1704281445194,-272.57006103,0.00041,20]
[309992581,1704281445206,-445.97526111,0.00041183,2]
[309992583,1704281445215,-933.872942,0.00041183,2]
[309992587,1704281445225,-485.76744577,0.00043899,2]
[309992590,1704281445236,-9646.94990217,0.00045825,2]
[309992592,1704281445246,-190.33554552,0.00045887,10]
[309992594,1704281445255,-190.33554552,0.00045887,10]
[309992596,1704281445265,-190.33554552,0.00045887,10]
[309992598,1704281445275,-190.33554552,0.00045887,10]
[309992600,1704281445285,-190.33554552,0.00045887,10]
[309992603,1704281445295,-190.33554552,0.00045887,10]
[309992606,1704281445304,-190.33554552,0.00045887,10]
[309992609,1704281445314,-190.33554552,0.00045887,10]
[309992611,1704281445323,-190.33554552,0.00045887,10]
[309992613,1704281445333,-190.33554552,0.00045887,10]
[309992615,1704281445342,-190.33554552,0.00045887,10]
[309992617,1704281445352,-190.33554552,0.00045887,10]
[309992620,1704281445362,-190.33554552,0.00045887,10]
[309992623,1704281445371,-190.33554552,0.00045887,10]
[309992626,1704281445380,-190.33554552,0.00045887,10]
[309992629,1704281445389,-190.33554552,0.00045887,10]
[309992632,1704281445398,-190.33554552,0.00045887,10]
[309992635,1704281445408,-190.33554552,0.00045887,10]
[309992638,1704281445417,-190.33554552,0.00045887,10]
[309992641,1704281445426,-190.33,0.00045887,10]
[309992644,1704281445436,-761.34218209,0.00045887,10]
[309992646,1704281445445,-761.34218209,0.00045887,10]
[309992649,1704281445456,-761.34218209,0.00045887,10]
[309992651,1704281445466,-761.34218209,0.00045887,10]
[309992654,1704281445477,-761.34218209,0.00045887,10]
[309992655,1704281445486,-761.34218209,0.00045887,10]
[309992657,1704281445497,-761.34218209,0.00045887,10]
[309992660,1704281445507,-761.34218209,0.00045887,10]
[309992662,1704281445520,-761.34218209,0.00045887,10]
[309992664,1704281445530,-761.34218209,0.00045887,10]
[309992666,1704281445539,-761.34218209,0.00045887,10]
[309992667,1704281445549,-761.34218209,0.00045887,10]
[309992668,1704281445559,-761.34218209,0.00045887,10]
[309992670,1704281445568,-761.34218209,0.00045887,10]
[309992672,1704281445577,-761.34218209,0.00045887,10]
[309992674,1704281445587,-761.34218209,0.00045887,10]
[309992676,1704281445597,-761.34218209,0.00045887,10]
[309992678,1704281445607,-761.34218209,0.00045887,10]
[309992680,1704281445616,-761.34218209,0.00045887,10]
[309992689,1704281445692,-197.06185588,0.00045887,10]
[309992691,1704281445702,-22251.85001144,0.00045897,5]
[309992693,1704281445713,-761.34,0.00045897,10]
[309992695,1704281445722,-197.06,0.00045897,10]
[309992697,1704281445732,-12575.37259472,0.000459,10]
[309992698,1704281445741,-300.0,0.000459,24]
[309992701,1704281445750,-160.0,0.00045918,3]
[309992702,1704281445759,-237.0,0.00045967,60]
[309992704,1704281445770,-150.0,0.00045967,60]
[309992705,1704281445779,-153.0,0.00045973,2]
[309992706,1704281445789,-153.0,0.00045973,2]
[309992707,1704281445799,-153.0,0.00045973,2]
[309992708,1704281445809,-153.0,0.00045973,2]
[309992709,1704281445819,-153.0,0.00045973,2]
[309992710,1704281445829,-155.99791045,0.00045977,2]
[309992711,1704281445839,-237.0,0.00045977,60]
[309992712,1704281445848,-150.0,0.00045977,60]
[309992713,1704281445858,-237.0,0.00045987,60]
[309992714,1704281445867,-150.0,0.00045987,60]
[309992715,1704281445876,-151.0,0.00045997,2]
[309992716,1704281445886,-151.0,0.00045997,2]
[309992717,1704281445896,-151.0,0.00045997,3]
[309992718,1704281445907,-542.847059,0.00045997,7]
[309992719,1704281445916,-542.847059,0.00045997,7]
[309992720,1704281445926,-446.098174,0.00045997,7]
[309992722,1704281445935,-446.098174,0.00045997,7]
[309992724,1704281445945,-528987.08472484,0.00045997,7]
[309992727,1704281445964,-356.71593102,0.00045997,7]
[309992729,1704281445976,-106193.77555905,0.00045997,7]
[309992731,1704281445988,-3668.90561819,0.00045997,7]
[309992733,1704281445999,-1086.54683101,0.00045997,7]
[309992737,1704281446046,-4023.0,0.00045997,7]
[309992823,1704281447025,-0.22669619,0.00045997,7]
[309992833,1704281447116,-345.58677069,0.00045997,7]
[309992842,1704281447181,-89073.66186821,0.00045997,7]
[309992959,1704281573268,-797.75665948,0.00030747,4]
[309992960,1704281573289,-3333.56686344,0.00030747,2]
[309992961,1704281573310,-154.81422293,0.00030747,4]
[309992962,1704281573332,-912.79105878,0.00030748,4]
[309992963,1704281573352,-536.60466648,0.00030749,4]
[309992964,1704281573372,-383.32525908,0.0003075,4]
[309992965,1704281573393,-2308.14126981,0.00030751,4]
[309992966,1704281639691,-154.81422293,0.00030643,4]
[309992967,1704281639716,-823.56526853,0.00030644,4]
[309992968,1704281639738,-191.32355416,0.00030645,6]
[309992969,1704281639761,-220.20687246,0.00030745,4]
[309992970,1704281639784,-236.09008192,0.00030758,4]
[309992971,1704281706984,-236.86655345,0.0003064,4]
[309992972,1704281707005,-228.63662171,0.00030641,4]
[309992973,1704281707024,-2342.49682484,0.00030758,4]
[309992975,1704281771634,-154.81422293,0.00030757,5]
[309992976,1704281771660,-143.25734116,0.00030758,4]
[309992977,1704281771683,-154.8830599,0.00030758,2]
[309992978,1704281771705,-626.27117964,0.00034492,4]
[309992979,1704281771727,-698.95,0.00034493,4]
[309992980,1704281771748,-300.55274885,0.00034494,4]
[309992981,1704281771769,-17.27144752,0.00034495,7]
[309992982,1704281839386,-168.26848418,0.00034394,7]
[309992983,1704281839407,-7190.07121738,0.00034491,4]
[309992984,1704281839428,-5246.86679064,0.00034491,4]
[309992985,1704281839449,-4665.85614911,0.00034492,4]
[309992986,1704281839470,-189.0,0.00034493,2]
[309992987,1704281839491,-166.2793413,0.00034493,2]
[309992988,1704281839511,-32149.65801739,0.00034493,4]
[309992989,1704281911880,-154.81422293,0.00034494,4]
[309992990,1704281911908,-6595.47632573,0.00034495,4]
[309992991,1704281911929,-1000.0,0.00034496,7]
[309992992,1704281911949,-480.93166929,0.00034497,4]
[309992993,1704281911969,-666.4896426,0.0003495,5]
[309992994,1704281911989,-150.0,0.00035,15]
[309992995,1704281912009,-590.27084275,0.00035,2]
[309992996,1704281912028,-4177.42015254,0.00035,4]
[309992997,1704281912049,-11084.59714416,0.00037036,2]
[309992998,1704281978771,-154.81422293,0.00037034,5]
[309992999,1704281978793,-220.20687246,0.00037035,4]
[309993000,1704281978815,-379.0,0.00037036,2]
[309993001,1704281978837,-12549.97890461,0.00037036,2]
[309993005,1704282454094,-228.63662171,0.00030908,4]
[309993006,1704282454118,-368.43474464,0.00030908,4]
[309993007,1704282454140,-239.48878468,0.00030908,4]
[309993008,1704282454162,-1050.54870749,0.00030909,2]
[309993009,1704282454185,-340.15584359,0.0003091,4]
[309993010,1704282454207,-332.28192545,0.0003091,4]
[309993011,1704282454229,-154.81422293,0.0003091,5]
[309993012,1704282454252,-626.27117964,0.0003091,4]
[309993013,1704282454274,-329.92532047,0.00030911,4]
[309993014,1704282454293,-154.81422293,0.00030911,4]
[309993015,1704282454314,-342.48956173,0.00030911,2]
[309993016,1704282454337,-154.81422293,0.00030911,4]
[309993017,1704282454358,-1108.7723631,0.00030912,120]
[309993018,1704282454379,-751.97097364,0.00030978,4]
[309993019,1704282454401,-13542.77886456,0.00030978,4]
[309993021,1704282553126,-166.2793413,0.00030874,2]
[309993022,1704282553146,-154.81422293,0.00030875,4]
[309993023,1704282553167,-2808.26480597,0.00030875,4]
[309993024,1704282553186,-210.35056589,0.00030876,4]
[309993025,1704282553207,-309.19239456,0.00030876,4]
[309993026,1704282553227,-7190.07121738,0.00030876,4]
[309993027,1704282553249,-184.25848968,0.00030877,2]
[309993028,1704282553269,-1573.58742411,0.00030877,4]
[309993029,1704282553288,-4665.85614911,0.00030877,4]
[309993030,1704282553308,-168.26848417,0.00030879,5]
[309993031,1704282553328,-7987.1129013,0.00030903,4]
[309993032,1704282553348,-27950.2133485,0.00030903,4]
[309993033,1704282553367,-10136.11428019,0.00030904,4]
[309993034,1704282553388,-13303.66907742,0.00030905,2]
[309993035,1704282553408,-3201.27389784,0.00030906,2]
[309993036,1704282553429,-7794.7443826,0.00030978,4]
[309993037,1704282555105,-14102.41578919,0.00030978,4]
[309993038,1704282555129,-984.92004342,0.00030978,4]
[309993039,1704282555149,-5210.01915065,0.00030978,2]
[309993040,1704282555172,-2074.80218576,0.00030978,4]
[309993041,1704282555193,-5610.01970295,0.00030979,2]
[309993042,1704282556090,-16865.60758793,0.00030979,2]
[309993112,1704282636118,-5210.05665149,0.00030978,2]
[309993114,1704282636128,-1689.91142006,0.00030978,4]
[309993116,1704282636138,-607.672133,0.00030978,2]
[309993130,1704282636265,-2424.37270912,0.00030979,2]
[309993132,1704282636285,-984.92004342,0.00030979,4]
[309993134,1704282636295,-357.7245857,0.00031581,2]
[309993136,1704282636305,-200.0,0.000323,2]
[309993138,1704282636315,-1400.14177088,0.00032578,4]
[309993140,1704282636325,-526.04343674,0.00032584,4]
[309993142,1704282636335,-5680.34530634,0.00032587,2]
[309993144,1704282636345,-1105.46134707,0.00032592,2]
[309993146,1704282636355,-1000.0,0.00034,7]
[309993148,1704282636366,-644.27306735,0.00034221,2]
[309993150,1704282636376,-184.76548466,0.00034396,2]
[309993153,1704282636386,-2345.471564,0.00034521,2]
[309993155,1704282636397,-4633.7544577,0.00034706,2]
[309993156,1704282636407,-11731.281089,0.00034858,2]
[309993158,1704282636418,-666.4896426,0.0003495,5]
[309993160,1704282636428,-590.27084275,0.00035,2]
[309993162,1704282636438,-990.335986,0.00035616,120]
[309993164,1704282636448,-2345.471564,0.00035798,2]
[309993166,1704282636459,-250.0,0.00035845,15]
[309993168,1704282636469,-621.21365337,0.00035932,2]
[309993171,1704282636480,-166.666666,0.00036294,2]
[309993173,1704282636494,-949.734287,0.00036452,2]
[309993175,1704282636504,-250.0,0.00036805,2]
[309993177,1704282636514,-200.0,0.00037032,30]
[309993179,1704282636524,-1117.57003451,0.00037035,30]
[309993180,1704282636533,-2345.471564,0.00037075,2]
[309993183,1704282636543,-166.666666,0.00037284,2]
[309993184,1704282636553,-150.81901718,0.00037401,120]
[309993186,1704282636562,-154.81422293,0.00037728,5]
[309993189,1704282636573,-620.06068267,0.00037729,2]
[309993190,1704282636583,-150.81901718,0.00038164,30]
[309993193,1704282636594,-166.666666,0.00038273,2]
[309993195,1704282636604,-2345.471564,0.00038352,2]
[309993196,1704282636614,-430.61163221,0.00038378,2]
[309993199,1704282636624,-2198.22423811,0.00038478,2]
[309993200,1704282636634,-549.55605952,0.00038478,2]
[309993202,1704282636644,-2703.8850937,0.00038675,2]
[309993205,1704282636662,-493.35195838,0.00038675,2]
[309993206,1704282636671,-461.46441114,0.00038675,2]
[309993207,1704282636681,-578.0554099,0.000388,45]
[309993208,1704282636691,-150.81901718,0.00038943,7]
[309993209,1704282636700,-174.71433,0.0003901,2]
[309993210,1704282636710,-166.666666,0.00039263,2]
[309993211,1704282636720,-350.0,0.00039429,30]
[309993212,1704282636729,-2345.471564,0.0003963,2]
[309993213,1704282636741,-150.81901718,0.00039738,4]
[309993214,1704282636751,-8579.22642622,0.0003995,3]
[309993215,1704282636762,-4.16357378,0.0003995,3]
[309993216,1704282636772,-6169.15918687,0.0003996,3]
[309993336,1704282638158,-309.67622022,0.00035615,4]
[309993338,1704282638170,-1276.87891946,0.00035615,4]
[309993341,1704282638181,-2590.86501286,0.00035615,4]
[309993343,1704282638190,-4130.90081313,0.0003996,3]
[309993345,1704282638200,-12360.08,0.0003997,3]
[309993347,1704282638209,-14832.09,0.0003998,3]
[309993349,1704282638218,-4031.97114424,0.0003999,4]
[309993351,1704282638227,-157.25707358,0.0004,7]
[309993353,1704282638236,-430.61163219,0.00040232,2]
[309993355,1704282638249,-166.666666,0.00040252,2]
[309993357,1704282638258,-150.81901718,0.00040549,2]
[309993358,1704282638268,-166.666666,0.00041242,2]
[309993360,1704282638278,-720.80077319,0.00041306,2]
[309993362,1704282638287,-219.25891283,0.00041306,4]
[309993364,1704282638297,-4927.85155104,0.00041306,4]
[309993366,1704282638306,-155.29558342,0.00041397,4]
[309993368,1704282638315,-990.335986,0.00041553,120]
[309993370,1704282638325,-537.71425278,0.00042,2]
[309993371,1704282638334,-430.61163219,0.00042087,2]
[309993372,1704282638343,-1000.0,0.00043,43]
[309993373,1704282638352,-160.00236951,0.00043371,4]
[309993374,1704282638361,-210.58113106,0.00043371,2]
[309993376,1704282638370,-200.0,0.00043372,30]
[309993378,1704282638380,-289.0,0.00043372,30]
[309993380,1704282638389,-4808.08580524,0.00043671,7]
[309993382,1704282638399,-6683.09308292,0.00043692,4]
[309993384,1704282638410,-1566.95373344,0.00043693,4]
[309993386,1704282638419,-1085.53062007,0.00043897,2]
[309993388,1704282638429,-344.14849865,0.00043898,4]
[309993390,1704282638438,-214.81903446,0.00043898,4]
[309993392,1704282638447,-489.56526759,0.00043898,7]
[309993394,1704282638456,-430.61163219,0.00043941,2]
[309993396,1704282638465,-1000.0,0.00044,44]
[309993398,1704282638475,-292.106,0.00044517,2]
[309993400,1704282638484,-160.0,0.00044517,2]
[309993402,1704282638496,-150.0,0.00044517,2]
[309993404,1704282638505,-301.50219196,0.00044615,4]
[309993406,1704282638514,-2187.84969713,0.00044955,10]
[309993408,1704282638523,-5141.92688641,0.00044977,4]
[309993410,1704282638532,-1000.0,0.00045,45]
[309993412,1704282638542,-2178.0,0.00045,15]
[309993414,1704282638552,-173.0,0.00045,90]
[309993416,1704282638561,-2156.59,0.00045,2]
[309993418,1704282638571,-150.81901718,0.00045054,2]
[309993420,1704282638580,-250.19065122,0.00045054,2]
[309993422,1704282638590,-500.0,0.00045205,27]
[309993424,1704282638599,-38773.05687,0.00045424,4]
[309993426,1704282638608,-153.0,0.00045425,2]
[309993428,1704282638617,-153.0,0.00045425,2]
[309993429,1704282638626,-153.0,0.00045425,2]
[309993431,1704282638636,-153.0,0.00045425,2]
[309993433,1704282638645,-153.0,0.00045425,2]
[309993435,1704282638654,-153.0,0.00045425,2]
[309993437,1704282638663,-153.0,0.00045425,2]
[309993439,1704282638672,-153.0,0.00045425,2]
[309993441,1704282638681,-153.0,0.00045425,2]
[309993443,1704282638691,-153.0,0.00045425,2]
[309993445,1704282638701,-153.0,0.00045425,2]
[309993447,1704282638712,-153.0,0.00045425,2]
[309993449,1704282638721,-153.0,0.00045425,2]
[309993451,1704282638732,-285.793003,0.00045425,2]
[309993453,1704282638743,-153.0,0.00045425,2]
[309993455,1704282638752,-153.0,0.00045425,2]
[309993457,1704282638760,-153.0,0.00045425,2]
[309993459,1704282638770,-153.0,0.00045425,2]
[309993461,1704282638778,-153.0,0.00045425,2]
[309993463,1704282638787,-153.0,0.00045425,2]
[309993465,1704282638796,-153.0,0.00045425,2]
[309993467,1704282638805,-153.0,0.00045425,2]
[309993469,1704282638815,-153.0,0.00045425,2]
[309993471,1704282638824,-27392.52717411,0.00045436,4]
[309993473,1704282638833,-500.0,0.00045479,27]
[309993475,1704282638843,-173.0,0.00045685,90]
[309993477,1704282638852,-161.96718927,0.00045701,10]
[309993479,1704282638861,-736.32941334,0.00045737,7]
[309993481,1704282638871,-500.0,0.00045753,27]
[309993483,1704282638880,-2000.0,0.00045753,21]
[309993485,1704282638888,-2000.0,0.00045753,21]
[309993487,1704282638898,-2000.0,0.00045766,21]
[309993497,1704282638978,-1573.71175048,0.00045767,14]
[309993499,1704282638987,-430.61163219,0.00045795,2]
[309993501,1704282638997,-25364.74582357,0.00045797,5]
[309993503,1704282639006,-301.63803436,0.00045811,4]
[309993505,1704282639015,-226.0,0.00045866,60]
[309993507,1704282639024,-226.0,0.00045867,60]
[309993509,1704282639034,-150.0,0.00045867,60]
[309993511,1704282639043,-226.0,0.00045876,60]
[309993513,1704282639057,-226.0,0.00045877,60]
[309993515,1704282639066,-226.0,0.00045886,60]
[309993517,1704282639075,-226.0,0.00045887,60]
[309993518,1704282639085,-4504.31306003,0.00045894,120]
[309993520,1704282639095,-1365.1,0.00045895,21]
[309993523,1704282639105,-155.3888687,0.00045895,4]
[309993525,1704282639115,-545.90393294,0.00045895,4]
[309993527,1704282639125,-266.91378591,0.00045895,4]
[309993529,1704282639136,-180.04436552,0.00045895,4]
[309993531,1704282639146,-239.6147523,0.00045895,2]
[309993533,1704282639155,-546.90933091,0.00045895,4]
[309993535,1704282639164,-182.67639233,0.00045895,4]
[309993537,1704282639174,-283.30555506,0.00045895,4]
[309993539,1704282639183,-193.02310577,0.00045895,4]
[309993541,1704282639193,-437.3551265,0.00045895,4]
[309993542,1704282639202,-1147.41735878,0.00045895,4]
[309993544,1704282639212,-169.04265992,0.00045895,4]
[309993547,1704282639222,-1114.40194826,0.00045895,4]
[309993549,1704282639231,-1851.22705546,0.00045895,4]
[309993550,1704282639243,-155.05379099,0.00045895,4]
[309993552,1704282639253,-556.61625531,0.00045895,4]
[309993554,1704282639262,-19015.31104445,0.00045895,30]
[309993557,1704282639271,-209.83988486,0.00045895,4]
[309993559,1704282639280,-259.21649845,0.00045895,4]
[309993561,1704282639289,-382.72047258,0.00045895,4]
[309993563,1704282639300,-293.24645025,0.00045895,4]
[309993565,1704282639309,-174.2860135,0.00045895,4]
[309993567,1704282639319,-764.72555625,0.00045895,5]
[309993568,1704282639328,-314.54973496,0.00045895,4]
[309993570,1704282639339,-212.27847497,0.00045895,4]
[309993573,1704282639349,-344.02343727,0.00045895,4]
[309993575,1704282639358,-269.59344647,0.00045895,2]
[309993576,1704282639368,-157.49317612,0.00045895,4]
[309993578,1704282639377,-375.17618878,0.00045895,2]
[309993580,1704282639387,-1833.3620527,0.00045895,4]
[309993582,1704282639396,-2275.33846988,0.00045895,4]
[309993585,1704282639406,-3538.7366841,0.00045895,2]
[309993586,1704282639416,-309.62844586,0.00045895,30]
[309993588,1704282639426,-309.62844586,0.00045895,4]
[309993590,1704282639435,-155.0089227,0.00045895,4]
[309993592,1704282639444,-1326.08016861,0.00045895,4]
[309993594,1704282639454,-13303.66907742,0.00045895,2]
[309993596,1704282639463,-339.94313712,0.00045895,4]
[309993599,1704282639473,-4607.4874611,0.00045895,4]
[309993601,1704282639482,-2916.71294212,0.00045895,4]
[309993602,1704282639493,-314.27046823,0.00045895,4]
[309993604,1704282639503,-252.61218556,0.00045895,2]
[309993607,1704282639512,-6283.21950591,0.00045895,4]
[309993609,1704282639522,-1560.40520839,0.00045895,4]
[309993611,1704282639532,-8319.88673883,0.00045895,120]
[309993612,1704282639544,-9102.29716822,0.00045895,4]
[309993614,1704282639554,-295.26735545,0.00045896,4]
[309993616,1704282639563,-499.25,0.00045896,4]
[309993618,1704282639573,-4747.94411221,0.00045896,4]
[309993621,1704282639589,-527.12954456,0.00045896,4]
[309993623,1704282639601,-5138.61999987,0.00045896,4]
[309993625,1704282639613,-1144.41412866,0.00045896,4]
[309993726,1704282641184,-168.0,0.00045797,2]
[309993727,1704282641197,-8123.13025199,0.00045896,4]
[309993728,1704282641215,-11173.76121977,0.00045896,4]
[309993729,1704282641229,-2233.5579836,0.00045896,4]
[309993730,1704282641239,-4934.59014344,0.00045896,4]
[309993731,1704282641251,-292.08290109,0.00045896,4]
[309993732,1704282641263,-298.77,0.00045896,7]
[309993733,1704282641275,-399.44310863,0.00045897,3]
[309993734,1704282641288,-2987.9127131,0.00045897,7]
[309993735,1704282641303,-2214.39914936,0.00045897,7]